fUST/lending_fUST_20251010
["ID","MTS","AMOUNT","RATE_DAILY","PERIOD"]
[390463168,1760053849713,-500.0,0.00016986,2]
[390463170,1760053849722,-500.0,0.00016986,2]
[390463172,1760053849731,-1131.09,0.00016986,2]
[390463174,1760053849742,-500.0,0.00016986,2]
[390463176,1760053849751,-1941.97,0.00016986,2]
[390463178,1760053849760,-500.0,0.00016986,2]
[390463180,1760053849769,-471.65530401,0.00017037,2]
[390463182,1760053849779,-168.01695144,0.00017101,2]
[390463184,1760053849787,-1000.0,0.000172,2]
[390463186,1760053849797,-19292.2273969,0.00017232,2]
[390463188,1760053849806,-500.0,0.0001726,2]
[390463190,1760053849815,-500.0,0.0001726,2]
[390463192,1760053849823,-500.0,0.0001726,2]
[390463194,1760053849833,-151.0,0.0001726,2]
[390463196,1760053849843,-151.0,0.0001726,2]
[390463198,1760053849852,-500.0,0.0001726,2]
[390463200,1760053849861,-151.0,0.0001726,2]
[390463202,1760053849870,-151.0,0.0001726,2]
[390463204,1760053849879,-151.0,0.0001726,2]
[390463206,1760053849889,-500.0,0.0001726,2]
[390463208,1760053849898,-500.0,0.0001726,2]
[390463210,1760053849907,-500.0,0.0001726,2]
[390463212,1760053849916,-500.0,0.0001726,2]
[390463213,1760053849926,-500.0,0.0001726,2]
[390463215,1760053849935,-1040.1,0.0001726,2]
[390463217,1760053849945,-500.0,0.0001726,2]
[390463219,1760053849954,-903.1,0.0001726,2]
[390463221,1760053849963,-540.29,0.0001726,2]
[390463223,1760053849972,-500.0,0.0001726,2]
[390463225,1760053849981,-500.0,0.0001726,2]
[390463227,1760053849990,-540.3248113,0.0001726,2]
[390463229,1760053850000,-543.85,0.0001726,2]
[390463231,1760053850009,-500.0,0.0001726,2]
[390463233,1760053850018,-1002.66,0.0001726,2]
[390463235,1760053850027,-500.0,0.0001726,2]
[390463237,1760053850036,-500.0,0.0001726,2]
[390463239,1760053850045,-500.0,0.0001726,2]
[390463241,1760053850054,-500.0,0.0001726,2]
[390463243,1760053850063,-151.0,0.0001726,2]
[390463245,1760053850072,-162.576048,0.0001726,2]
[390463247,1760053850081,-1543.36,0.0001726,2]
[390463249,1760053850090,-2112.5,0.0001726,2]
[390463251,1760053850100,-555.34,0.0001726,2]
[390463253,1760053850109,-500.0,0.0001726,2]
[390463255,1760053850118,-1272.56,0.0001726,2]
[390463257,1760053850128,-250.98830554,0.0001726,2]
[390463259,1760053850137,-500.0,0.0001726,2]
[390463261,1760053850146,-927.14,0.0001726,2]
[390463263,1760053850155,-2954.59,0.0001726,2]
[390463265,1760053850164,-3331.7,0.0001726,2]
[390463267,1760053850173,-925.96,0.0001726,2]
[390463269,1760053850183,-286.371093,0.0001726,2]
[390463271,1760053850193,-500.0,0.0001726,2]
[390463273,1760053850202,-151.0,0.0001726,2]
[390463275,1760053850211,-861.86,0.0001726,2]
[390463277,1760053850220,-500.0,0.0001726,2]
[390463279,1760053850229,-500.0,0.0001726,2]
[390463281,1760053850238,-5618.55,0.0001726,2]
[390463283,1760053850247,-151.0,0.0001726,2]
[390463285,1760053850256,-151.0,0.0001726,2]
[390463287,1760053850265,-500.0,0.0001726,2]
[390463289,1760053850274,-466.51856144,0.0001726,2]
[390463290,1760053850283,-533.61,0.0001726,2]
[390463292,1760053850292,-542.4,0.0001726,2]
[390463294,1760053850301,-578.39,0.0001726,2]
[390463296,1760053850310,-459.792454,0.0001726,2]
[390463298,1760053850319,-500.0,0.0001726,2]
[390463300,1760053850328,-500.0,0.0001726,2]
[390463302,1760053850337,-500.0,0.0001726,2]
[390463304,1760053850347,-3140.19,0.0001726,2]
[390463306,1760053850356,-500.0,0.0001726,2]
[390463308,1760053850365,-514.17,0.0001726,2]
[390463310,1760053850375,-2615.12,0.0001726,2]
[390463312,1760053850384,-583.39,0.0001726,2]
[390463314,1760053850393,-635.47,0.0001726,2]
[390463316,1760053850403,-500.0,0.0001726,2]
[390463318,1760053850412,-690.45,0.0001726,2]
[390463320,1760053850425,-1422.51,0.0001726,2]
[390463322,1760053850435,-944.88,0.0001726,2]
[390463324,1760053850444,-500.0,0.0001726,2]
[390463326,1760053850453,-500.0,0.0001726,2]
[390463328,1760053850465,-2841.08,0.0001726,2]
[390463330,1760053850475,-591.46,0.0001726,2]
[390463332,1760053850487,-500.0,0.0001726,2]
[390463334,1760053850498,-521.23,0.0001726,2]
[390463336,1760053850508,-578.23,0.0001726,2]
[390463338,1760053850517,-500.0,0.0001726,2]
[390463340,1760053850526,-1097.15,0.0001726,2]
[390463342,1760053850535,-500.0,0.0001726,2]
[390463344,1760053850545,-1179.38,0.0001726,2]
[390463346,1760053850555,-602.85,0.0001726,2]
[390463348,1760053850564,-500.0,0.0001726,2]
[390463350,1760053850573,-500.0,0.0001726,2]
[390463352,1760053850582,-500.0,0.0001726,2]
[390463354,1760053850591,-500.0,0.0001726,2]
[390463355,1760053850600,-1131.09,0.0001726,2]
[390463357,1760053850610,-1941.97,0.0001726,2]
[390463359,1760053850619,-1000.0,0.000173,2]
[390463361,1760053850628,-420.67613435,0.00017321,2]
[390463363,1760053850637,-1000.0,0.00017321,2]
[390463365,1760053850646,-1000.0,0.00017321,2]
[390463367,1760053850655,-938.85825433,0.00017321,2]
[390463369,1760053850665,-1000.0,0.00017321,2]
[390463371,1760053850674,-1000.0,0.00017321,2]
[390463373,1760053850683,-500.0,0.00017321,2]
[390463375,1760053850692,-1002.06029178,0.00017321,2]
[390463377,1760053850701,-1001.58581125,0.00017321,2]
[390463379,1760053850710,-1000.0,0.00017321,2]
[390463381,1760053850719,-1000.0,0.00017321,2]
[390463383,1760053850728,-1000.0,0.00017321,2]
[390463385,1760053850738,-500.0,0.00017321,2]
[390463387,1760053850748,-1000.0,0.00017321,2]
[390463389,1760053850756,-504.17968185,0.00017321,2]
[390463391,1760053850765,-1000.0,0.00017321,2]
[390463393,1760053850776,-1000.0,0.00017321,2]
[390463395,1760053850785,-1000.0,0.00017321,2]
[390463397,1760053850795,-1000.0,0.00017321,2]
[390463399,1760053850804,-418.25894902,0.000174,2]
[390463401,1760053850812,-2000.0,0.000174,2]
[390463403,1760053850821,-168.0,0.00017426,2]
[390463404,1760053850831,-160.0,0.00017431,2]
[390463406,1760053850840,-160.0,0.00017431,2]
[390463408,1760053850849,-417.15472785,0.00017431,2]
[390463410,1760053850859,-234.29301719,0.00017431,2]
[390463412,1760053850868,-402.15066402,0.00017431,2]
[390463414,1760053850877,-980.0,0.00017453,2]
[390463416,1760053850886,-630.0,0.00017453,2]
[390463418,1760053850895,-2159.0,0.00017453,2]
[390463420,1760053850905,-150.0,0.00017453,2]
[390463422,1760053850915,-187.186,0.00017453,2]
[390463424,1760053850924,-212.352,0.00017453,2]
[390463426,1760053850933,-151.0,0.00017453,2]
[390463428,1760053850942,-151.0,0.00017453,2]
[390463430,1760053850951,-151.0,0.00017453,2]
[390463432,1760053850961,-151.0,0.00017453,2]
[390463434,1760053850970,-151.0,0.00017453,2]
[390463436,1760053850979,-257.739008,0.00017453,2]
[390463438,1760053850988,-4195.0,0.00017453,2]
[390463439,1760053850997,-151.0,0.00017453,2]
[390463441,1760053851006,-151.0,0.00017453,2]
[390463443,1760053851016,-151.0,0.00017453,2]
[390463445,1760053851025,-151.0,0.00017453,2]
[390463447,1760053851034,-151.0,0.00017453,2]
[390463449,1760053851043,-151.0,0.00017453,2]
[390463451,1760053851052,-168.0,0.00017494,2]
[390463453,1760053851061,-1000.0,0.000175,2]
[390463455,1760053851070,-151.0,0.00017524,2]
[390463457,1760053851079,-210.450322,0.00017524,2]
[390463459,1760053851089,-210.450322,0.00017524,2]
[390463461,1760053851098,-210.450322,0.00017524,2]
[390463463,1760053851107,-210.450322,0.00017524,2]
[390463465,1760053851116,-235.448137,0.00017524,2]
[390463467,1760053851125,-235.448137,0.00017524,2]
[390463469,1760053851134,-235.448137,0.00017524,2]
[390463471,1760053851142,-235.448137,0.00017524,2]
[390463473,1760053851151,-500.0,0.00017534,2]
[390463475,1760053851159,-500.0,0.00017534,2]
[390463476,1760053851168,-500.0,0.00017534,2]
[390463477,1760053851177,-500.0,0.00017534,2]
[390463478,1760053851186,-151.0,0.00017534,2]
[390463479,1760053851195,-500.0,0.00017534,2]
[390463480,1760053851203,-1040.1,0.00017534,2]
[390463481,1760053851213,-151.0,0.00017534,2]
[390463482,1760053851222,-500.0,0.00017534,2]
[390463483,1760053851232,-903.1,0.00017534,2]
[390463484,1760053851241,-540.29,0.00017534,2]
[390463485,1760053851250,-327.23831281,0.00017534,2]
[390463491,1760053851411,-172.76168719,0.00017534,2]
[390463493,1760053851420,-543.85,0.00017534,2]
[390463495,1760053851436,-500.0,0.00017534,2]
[390463497,1760053851445,-1002.66,0.00017534,2]
[390463499,1760053851454,-500.0,0.00017534,2]
[390463501,1760053851464,-500.0,0.00017534,2]
[390463503,1760053851474,-500.0,0.00017534,2]
[390463505,1760053851482,-500.0,0.00017534,2]
[390463507,1760053851491,-1543.36,0.00017534,2]
[390463509,1760053851503,-2112.5,0.00017534,2]
[390463511,1760053851512,-555.34,0.00017534,2]
[390463513,1760053851521,-500.0,0.00017534,2]
[390463515,1760053851530,-1272.56,0.00017534,2]
[390463517,1760053851540,-500.0,0.00017534,2]
[390463519,1760053851550,-927.14,0.00017534,2]
[390463521,1760053851559,-2328.63935099,0.00017534,2]
[390463523,1760053851571,-325.76237576,0.00017534,2]
[390463526,1760053851582,-300.18827325,0.00017534,2]
[390463528,1760053851591,-3331.7,0.00017534,2]
[390463530,1760053851602,-925.96,0.00017534,2]
[390463532,1760053851612,-500.0,0.00017534,2]
[390463534,1760053851621,-861.86,0.00017534,2]
[390463536,1760053851630,-500.0,0.00017534,2]
[390463537,1760053851639,-500.0,0.00017534,2]
[390463539,1760053851650,-5618.55,0.00017534,2]
[390463541,1760053851660,-500.0,0.00017534,2]
[390463543,1760053851670,-533.61,0.00017534,2]
[390463546,1760053851680,-542.4,0.00017534,2]
[390463548,1760053851691,-578.39,0.00017534,2]
[390463550,1760053851700,-500.0,0.00017534,2]
[390463552,1760053851711,-500.0,0.00017534,2]
[390463554,1760053851721,-500.0,0.00017534,2]
[390463556,1760053851730,-3140.19,0.00017534,2]
[390463558,1760053851740,-151.0,0.00017534,2]
[390463559,1760053851749,-500.0,0.00017534,2]
[390463561,1760053851759,-514.17,0.00017534,2]
[390463564,1760053851769,-2615.12,0.00017534,2]
[390463565,1760053851779,-583.39,0.00017534,2]
[390463568,1760053851789,-500.0,0.00017534,2]
[390463570,1760053851798,-690.45,0.00017534,2]
[390463571,1760053851808,-1422.51,0.00017534,2]
[390463573,1760053851818,-944.88,0.00017534,2]
[390463575,1760053851828,-500.0,0.00017534,2]
[390463578,1760053851839,-151.0,0.00017534,2]
[390463579,1760053851848,-500.0,0.00017534,2]
[390463581,1760053851858,-2841.08,0.00017534,2]
[390463584,1760053851868,-591.46,0.00017534,2]
[390463586,1760053851878,-151.0,0.00017534,2]
[390463588,1760053851888,-500.0,0.00017534,2]
[390463590,1760053851897,-521.23,0.00017534,2]
[390463592,1760053851907,-578.23,0.00017534,2]
[390463594,1760053851917,-500.0,0.00017534,2]
[390463596,1760053851926,-1097.15,0.00017534,2]
[390463597,1760053851936,-500.0,0.00017534,2]
[390463599,1760053851947,-1179.38,0.00017534,2]
[390463602,1760053851956,-602.85,0.00017534,2]
[390463604,1760053851966,-500.0,0.00017534,2]
[390463605,1760053851975,-500.0,0.00017534,2]
[390463607,1760053851984,-189.39989451,0.00017534,2]
[390463609,1760053851993,-500.0,0.00017534,2]
[390463612,1760053852003,-1131.09,0.00017534,2]
[390463613,1760053852012,-1941.97,0.00017534,2]
[390463615,1760053852022,-168.0,0.00017538,2]
[390463618,1760053852032,-168.0,0.00017544,2]
[390463620,1760053852041,-168.0,0.0001757,2]
[390463621,1760053852050,-168.0,0.00017596,2]
[390463624,1760053852060,-418.25894902,0.000176,2]
[390463626,1760053852069,-867.58627159,0.000176,2]
[390463627,1760053852078,-533.17556106,0.00017637,2]
[390463629,1760053852087,-160.46700222,0.00017704,2]
[390463631,1760053852096,-544.41282907,0.0001778,2]
[390463651,1760053852275,-500.0,0.00016438,2]
[390463653,1760053852285,-500.0,0.00016712,2]
[390463655,1760053852294,-500.0,0.00016712,2]
[390463657,1760053852303,-500.0,0.00016986,2]
[390463659,1760053852313,-500.0,0.00016986,2]
[390463660,1760053852322,-500.0,0.0001726,2]
[390463662,1760053852332,-500.0,0.0001726,2]
[390463664,1760053852341,-500.0,0.00017534,2]
[390463666,1760053852351,-500.0,0.00017534,2]
[390463668,1760053852360,-3961.19494365,0.0001778,2]
[390463671,1760053852372,-7245.15920529,0.0001778,2]
[390463673,1760053852387,-8255.27283258,0.0001778,2]
[390463675,1760053852397,-418.25894902,0.000178,2]
[390463677,1760053852406,-1000.0,0.000178,2]
[390463679,1760053852416,-1000.0,0.00017808,2]
[390463681,1760053852428,-500.0,0.00017808,2]
[390463683,1760053852437,-500.0,0.00017808,2]
[390463685,1760053852447,-500.0,0.00017808,2]
[390463687,1760053852456,-500.0,0.00017808,2]
[390463689,1760053852467,-1040.1,0.00017808,2]
[390463691,1760053852476,-500.0,0.00017808,2]
[390463693,1760053852485,-903.1,0.00017808,2]
[390463695,1760053852494,-540.29,0.00017808,2]
[390463697,1760053852503,-500.0,0.00017808,2]
[390463716,1760053852675,-543.85,0.00017808,2]
[390463718,1760053852685,-500.0,0.00017808,2]
[390463720,1760053852694,-1002.66,0.00017808,2]
[390463722,1760053852704,-500.0,0.00017808,2]
[390463724,1760053852713,-500.0,0.00017808,2]
[390463726,1760053852722,-500.0,0.00017808,2]
[390463728,1760053852731,-500.0,0.00017808,2]
[390463730,1760053852740,-1543.36,0.00017808,2]
[390463732,1760053852750,-2112.5,0.00017808,2]
[390463734,1760053852760,-555.34,0.00017808,2]
[390463736,1760053852769,-500.0,0.00017808,2]
[390463738,1760053852778,-1272.56,0.00017808,2]
[390463740,1760053852788,-500.0,0.00017808,2]
[390463742,1760053852797,-927.14,0.00017808,2]
[390463744,1760053852806,-2954.59,0.00017808,2]
[390463746,1760053852815,-2824.99821839,0.00017808,2]
[390463767,1760053853001,-243.32,0.00016438,2]
[390463769,1760053853011,-250.9973247,0.00017808,2]
[390463774,1760053853052,-255.70445691,0.00017808,2]
[390463776,1760053853061,-203.00033454,0.00017808,2]
[390463778,1760053853074,-722.95966546,0.00017808,2]
[390463780,1760053853083,-500.0,0.00017808,2]
[390463782,1760053853092,-861.86,0.00017808,2]
[390463784,1760053853101,-500.0,0.00017808,2]
[390463786,1760053853110,-500.0,0.00017808,2]
[390463788,1760053853120,-5618.55,0.00017808,2]
[390463790,1760053853129,-500.0,0.00017808,2]
[390463792,1760053853138,-533.61,0.00017808,2]
[390463794,1760053853146,-542.4,0.00017808,2]
[390463796,1760053853155,-578.39,0.00017808,2]
[390463798,1760053853164,-210.01447756,0.00017808,2]
[390463800,1760053853175,-289.98552244,0.00017808,2]
[390463802,1760053853184,-384.5944776,0.00017808,2]
[390463804,1760053853194,-115.4055224,0.00017808,2]
[390463806,1760053853203,-500.0,0.00017808,2]
[390463808,1760053853212,-797.95259766,0.00017808,2]
[390463886,1760053854663,-2342.23740234,0.00017808,2]
[390463888,1760053854673,-500.0,0.00017808,2]
[390463890,1760053854681,-514.17,0.00017808,2]
[390463891,1760053854691,-2615.12,0.00017808,2]
[390463892,1760053854700,-583.39,0.00017808,2]
[390463894,1760053854709,-500.0,0.00017808,2]
[390463895,1760053854719,-690.45,0.00017808,2]
[390463896,1760053854728,-1422.51,0.00017808,2]
[390463897,1760053854737,-137.86185671,0.00017808,2]
[390463898,1760053854781,-372.9242503,0.00017808,2]
[390463899,1760053854794,-434.09389299,0.00017808,2]
[390463900,1760053854804,-500.0,0.00017808,2]
[390463901,1760053854813,-500.0,0.00017808,2]
[390463902,1760053854822,-2841.08,0.00017808,2]
[390463903,1760053854832,-591.46,0.00017808,2]
[390463904,1760053854841,-500.0,0.00017808,2]
[390463905,1760053854850,-521.23,0.00017808,2]
[390463906,1760053854859,-578.23,0.00017808,2]
[390463907,1760053854868,-500.0,0.00017808,2]
[390463908,1760053854878,-1097.15,0.00017808,2]
[390463909,1760053854888,-500.0,0.00017808,2]
[390463910,1760053854897,-1179.38,0.00017808,2]
[390463911,1760053854906,-602.85,0.00017808,2]
[390463912,1760053854915,-500.0,0.00017808,2]
[390463913,1760053854925,-500.0,0.00017808,2]
[390463914,1760053854934,-500.0,0.00017808,2]
[390463915,1760053854943,-1131.09,0.00017808,2]
[390463916,1760053854953,-1941.97,0.00017808,2]
[390463917,1760053854962,-500.0,0.00017808,2]
[390463918,1760053854971,-500.0,0.00017808,2]
[390463919,1760053854980,-151.0,0.00017808,2]
[390463920,1760053854989,-151.0,0.00017808,2]
[390463921,1760053854999,-226.1552,0.00017808,2]
[390463922,1760053855007,-5888.0,0.00017832,2]
[390463923,1760053855016,-151.0,0.00017832,2]
[390463924,1760053855026,-151.0,0.00017832,2]
[390463925,1760053855035,-168.0,0.00017849,2]
[390463926,1760053855046,-1606.1442599,0.00017868,2]
[390463927,1760053855057,-1500.0,0.00017868,2]
[390463928,1760053855066,-1387.71567513,0.00017868,2]
[390463939,1760053855688,4856.30431581,0.000286,120]
[390464103,1760053976237,1360.8,0.00028767,120]
[390464104,1760054018858,3000.0,0.00024,30]
[390464106,1760054137303,526.7,0.0002876,120]
[390464107,1760054154810,264.637976,0.00015437,2]
[390464110,1760054308233,500.31901244,0.00028767,120]
[390464113,1760054429807,17131.31,0.00028767,120]
[390464114,1760054433180,200.0,0.00028451,120]
[390464116,1760054487010,288.574681,0.00015438,2]
[390464117,1760054612587,200.0,0.00028283,120]
[390464119,1760054680503,999.78,0.0002876,120]
[390464122,1760054762168,177.26069776,0.00015154,2]
[390464124,1760054916477,288.0,0.00028767,120]
[390464163,1760055032878,-388.82572873,0.00016338,2]
[390464165,1760055032887,-270.09476627,0.00016338,2]
[390464175,1760055032975,-105.77536037,0.00016338,2]
[390464177,1760055032985,-1200.0,0.00016437,2]
[390464179,1760055032995,-300.0,0.00016437,2]
[390464181,1760055033004,-658.920495,0.00016438,2]
[390464183,1760055033015,-500.0,0.00016438,2]
[390464185,1760055033024,-500.0,0.00016438,2]
[390464187,1760055033034,-500.0,0.00016438,2]
[390464189,1760055033043,-500.0,0.00016438,2]
[390464191,1760055033052,-500.0,0.00016438,2]
[390464193,1760055033062,-520.0,0.00016438,3]
[390464195,1760055033072,-200.32,0.00016438,2]
[390464198,1760055033081,-500.0,0.00016438,2]
[390464201,1760055033091,-500.0,0.00016438,2]
[390464204,1760055033101,-500.0,0.00016438,2]
[390464208,1760055033111,-500.0,0.00016438,2]
[390464211,1760055033121,-500.0,0.00016438,2]
[390464214,1760055033130,-500.0,0.00016438,2]
[390464217,1760055033139,-500.0,0.00016438,2]
[390464219,1760055033149,-500.0,0.00016438,2]
[390464222,1760055033160,-500.0,0.00016438,2]
[390464225,1760055033171,-500.0,0.00016438,2]
[390464229,1760055033185,-500.0,0.00016438,2]
[390464230,1760055033194,-500.0,0.00016438,2]
[390464233,1760055033206,-500.0,0.00016438,2]
[390464236,1760055033216,-500.0,0.00016438,2]
[390464239,1760055033226,-500.0,0.00016438,2]
[390464242,1760055033235,-500.0,0.00016438,2]
[390464245,1760055033245,-500.0,0.00016438,2]
[390464247,1760055033255,-1033.6,0.00016438,2]
[390464250,1760055033265,-897.69,0.00016438,2]
[390464253,1760055033275,-535.01,0.00016438,2]
[390464257,1760055033285,-500.0,0.00016438,2]
[390464259,1760055033294,-500.0,0.00016438,2]
[390464262,1760055033304,-500.0,0.00016438,2]
[390464265,1760055033313,-438.76614488,0.00016438,2]
[390464267,1760055033323,-500.0,0.00016438,2]
[390464268,1760055033333,-500.0,0.00016438,2]
[390464270,1760055033342,-500.0,0.00016438,2]
[390464272,1760055033351,-500.13,0.00016438,2]
[390464274,1760055033361,-500.0,0.00016438,2]
[390464276,1760055033370,-500.0,0.00016438,2]
[390464278,1760055033380,-500.0,0.00016438,2]
[390464280,1760055033390,-500.0,0.00016438,2]
[390464282,1760055033399,-500.0,0.00016438,2]
[390464284,1760055033408,-500.0,0.00016438,2]
[390464286,1760055033417,-500.0,0.00016438,2]
[390464288,1760055033427,-500.0,0.00016438,2]
[390464290,1760055033436,-500.0,0.00016438,2]
[390464292,1760055033445,-500.0,0.00016438,2]
[390464294,1760055033454,-204.29494275,0.00016438,2]
[390464314,1760055033637,-694.47,0.00016438,2]
[390464316,1760055033647,-500.0,0.00016438,2]
[390464319,1760055033656,-500.0,0.00016438,2]
[390464321,1760055033667,-2278.98,0.00016438,2]
[390464323,1760055033677,-500.0,0.00016438,2]
[390464325,1760055033686,-500.0,0.00016438,2]
[390464327,1760055033696,-500.0,0.00016438,2]
[390464329,1760055033705,-500.0,0.00016438,2]
[390464331,1760055033714,-3162.35,0.00016438,2]
[390464333,1760055033724,-500.0,0.00016438,2]
[390464335,1760055033733,-1456.48,0.00016438,2]
[390464337,1760055033742,-562.37,0.00016438,2]
[390464339,1760055033752,-4213.91,0.00016438,2]
[390464340,1760055033762,-1178.99,0.00016438,2]
[390464342,1760055033772,-500.0,0.00016438,2]
[390464344,1760055033781,-509.05,0.00016438,2]
[390464346,1760055033791,-500.0,0.00016438,2]
[390464348,1760055033800,-2255.04,0.00016438,2]
[390464350,1760055033809,-500.0,0.00016438,2]
[390464352,1760055033818,-894.46,0.00016438,2]
[390464354,1760055033827,-500.0,0.00016438,2]
[390464356,1760055033836,-500.0,0.00016438,2]
[390464358,1760055033846,-500.0,0.00016438,2]
[390464360,1760055033856,-511.04,0.00016438,2]
[390464362,1760055033865,-500.0,0.00016438,2]
[390464364,1760055033874,-500.0,0.00016438,2]
[390464366,1760055033885,-500.0,0.00016438,2]
[390464368,1760055033894,-500.0,0.00016438,2]
[390464370,1760055033904,-2267.56,0.00016438,2]
[390464372,1760055033914,-500.0,0.00016438,2]
[390464374,1760055033924,-610.29,0.00016438,2]
[390464376,1760055033934,-500.0,0.00016438,2]
[390464378,1760055033943,-500.0,0.00016438,2]
[390464380,1760055033952,-500.0,0.00016438,2]
[390464382,1760055033962,-271.67521249,0.00016438,2]
[390464384,1760055033971,-500.0,0.00016438,2]
[390464386,1760055033980,-500.0,0.00016438,2]
[390464388,1760055033990,-2764.26,0.00016438,2]
[390464390,1760055034000,-183.26,0.00016438,2]
[390464392,1760055034009,-500.0,0.00016438,2]
[390464394,1760055034019,-2510.77,0.00016438,2]
[390464396,1760055034028,-521.58,0.00016438,2]
[390464398,1760055034037,-500.0,0.00016438,2]
[390464400,1760055034047,-500.0,0.00016438,2]
[390464402,1760055034057,-500.0,0.00016438,2]
[390464404,1760055034066,-520.89,0.00016438,2]
[390464406,1760055034075,-500.0,0.00016438,2]
[390464408,1760055034085,-520.75,0.00016438,2]
[390464410,1760055034095,-967.68,0.00016438,2]
[390464412,1760055034104,-500.0,0.00016438,2]
[390464414,1760055034114,-824.85,0.00016438,2]
[390464416,1760055034123,-500.0,0.00016438,2]
[390464418,1760055034133,-500.0,0.00016438,2]
[390464420,1760055034142,-500.0,0.00016438,2]
[390464422,1760055034152,-1041.82,0.00016438,2]
[390464424,1760055034161,-500.0,0.00016438,2]
[390464426,1760055034173,-500.0,0.00016438,2]
[390464428,1760055034187,-500.0,0.00016438,2]
[390464429,1760055034198,-500.0,0.00016438,2]
[390464432,1760055034212,-500.0,0.00016438,2]
[390464434,1760055034222,-500.0,0.00016438,2]
[390464436,1760055034233,-500.0,0.00016438,2]
[390464438,1760055034242,-500.0,0.00016438,2]
[390464439,1760055034252,-500.0,0.00016438,2]
[390464441,1760055034262,-500.0,0.00016438,2]
[390464443,1760055034271,-500.0,0.00016438,2]
[390464445,1760055034281,-500.0,0.00016438,2]
[390464447,1760055034291,-500.0,0.00016438,2]
[390464449,1760055034300,-895.23,0.00016438,2]
[390464451,1760055034310,-500.0,0.00016438,2]
[390464453,1760055034319,-377.0,0.00016702,3]
[390464454,1760055034328,-540.93382077,0.00016709,2]
[390464455,1760055034338,-452.98012144,0.00016709,2]
[390464457,1760055034348,-500.0,0.00016709,2]
[390464459,1760055034358,-500.0,0.00016709,2]
[390464461,1760055034367,-500.0,0.00016709,2]
[390464463,1760055034377,-515.63530868,0.00016709,2]
[390464465,1760055034386,-472.04735612,0.00016709,2]
[390464467,1760055034395,-500.0,0.00016709,2]
[390464469,1760055034404,-500.0,0.00016709,2]
[390464470,1760055034413,-500.0,0.00016709,2]
[390464471,1760055034422,-500.0,0.00016709,2]
[390464472,1760055034432,-311.89639244,0.00016709,2]
[390464473,1760055034441,-500.0,0.00016711,2]
[390464474,1760055034451,-500.0,0.00016711,2]
[390464475,1760055034460,-500.0,0.00016711,2]
[390464476,1760055034469,-200.0,0.00016711,2]
[390464477,1760055034478,-456.63249633,0.00016711,2]
[390464478,1760055034488,-1009.9,0.00016711,2]
[390464479,1760055034497,-1483.66,0.00016711,2]
[390464480,1760055034507,-646.4,0.00016711,2]
[390464481,1760055034516,-500.0,0.00016711,2]
[390464482,1760055034525,-500.0,0.00016711,2]
[390464483,1760055034535,-1270.1,0.00016711,2]
[390464484,1760055034544,-500.0,0.00016711,2]
[390464485,1760055034554,-500.0,0.00016712,2]
[390464486,1760055034563,-520.0,0.00016712,3]